Cogmind - Beta 14 @@@ ROGUE MODE // 2024.11.19 @ 11:14:05 Player: Fangrelle Result: Destroyed by as-07783 with Assembled Rifle Performance ------------- Evolutions (0) 0 Regions Visited (2) 400 Robots Destroyed (22) 110 Value Destroyed (267) 267 Prototype IDs (0) 0 Alien Tech Used (0) 0 Bonus (0) 0 TOTAL SCORE: 777 Bonus ------- None Cogmind --------- Core Integrity 0/250 Matter 8/300 Energy 80/100 System Corruption 0% Temperature Cool (38) Movement Treading (320) Ox2 Location -10/Mines Parts ------- > --- POWER (1) -------- (None) > --- PROPULSION (2) --- Light Treads > --- UTILITY (2) ------ High-capacity Storage Unit > --- WEAPON (2) ------- Medium Laser > --- INVENTORY (20) --- Compact Wheel High-capacity Storage Unit Visual Processing Unit Signal Interpreter Improved Terrain Scanner Seismic Detector Power Shielding Assault Rifle Assault Rifle Mining Laser Peak State ------------ > --- POWER ------------ Ion Engine > --- PROPULSION ------- Light Treads Light Treads > --- UTILITY ---------- Medium Storage Unit Improved Terrain Scanner > --- WEAPON ----------- Light Cannon Light Cannon > --- INVENTORY -------- Light Treads Light Treads Compact Wheel Compact Wheel Visual Processing Unit Seismic Detector Medium Laser Assault Rifle Assault Rifle Mining Laser [Rating: 10] Favorites ----------- Power Ion Engine Engine Ion Engine Propulsion Light Treads Treads Light Treads Leg Aluminum Leg Utility Improved Terrain Scanner Device Improved Terrain Scanner Storage Medium Storage Unit Protection Light Armor Plating Weapon Light Cannon Energy Gun Medium Laser Ballistic Gun Assault Rifle Ballistic Cannon Light Cannon Special Weapon Mining Laser Build | -11 -10 -10 ------- Run | Yrd Mat Min Slots Evolved . | . . . Power . | . . . Propulsion . | . . . Utility . | . . . Weapon . | . . . Parts Attached 29 | 4 21 4 Power 1 | . 1 . Engine 1 | . 1 . Core . | . . . Reactor . | . . . Propulsion 6 | 2 3 1 Treads 6 | 2 3 1 Leg . | . . . Wheel . | . . . Hover . | . . . Flight . | . . . Utility 5 | 2 2 1 Device 2 | 2 . . Storage 2 | . 2 . Processor . | . . . Hackware . | . . . Protection 1 | . . 1 Artifact . | . . . Weapon 17 | . 15 2 Energy Gun 1 | . . 1 Energy Cannon . | . . . Ballistic Gun 3 | . 3 . Ballistic Cannon 6 | . 5 1 Launcher . | . . . Special Weapon 7 | . 7 . Impact Weapon . | . . . Slashing Weapon . | . . . Piercing Weapon . | . . . Special Melee Weapon . | . . . Unidentified Prototypes . | . . . Parts Lost 6 | . . 6 Power 1 | . . 1 Propulsion 2 | . . 2 Utility 1 | . . 1 Weapon 2 | . . 2 Highest Loss Streak 4 | . . 4 To Critical Strikes 1 | . . 1 Average Slot Usage (%) 98 | . 100 80 Engine 13 | . 14 13 Treads 27 | . 28 20 Device 13 | . 14 11 Storage 14 | . 14 14 Ballistic Gun 3 | . 4 . Ballistic Cannon 18 | . 18 16 Special Weapon 4 | . 4 . Peak Build Rating 10 | 9 10 10 Average Rating 9 | 6 9 8 On Entrance 8 | 6 9 10 Naked Turns . | . . . Heaviest Build 52 | 13 52 52 Greatest Support 40 | 40 40 40 Greatest Overweight (x) 2 | . 1 2 Average Overweight (x) . | . . 1 Largest Inventory Capacity 20 | 8 20 20 Average Capacity 12 | 8 12 20 Most Carried 13 | 6 13 12 Average Carried 9 | 5 9 11 Final Capacity 20 | 8 20 20 Final Carried 12 | 6 12 10 Class Distribution -------------------- 88% | Mutant 11% | Scavenger-Mutant Dominant Class ---------------- Mutant | -10/Materials Mutant | -10/Mines Resources | -11 -10 -10 ----------- Run | Yrd Mat Min Matter Collected 511 | 272 221 18 Remotely . | . . . Salvage Created 373 | 109 245 19 Parts 45 | 5 39 1 Haulers Intercepted 1 | . 1 . Recyclers Shooed . | . . . Parts Field Recycled . | . . . Retrieved Matter . | . . . Parts Self-Destructed . | . . . Prevented . | . . . Kills | -11 -10 -10 ------- Run | Yrd Mat Min Combat Hostiles Destroyed 18 | . 13 5 Melee 2 | . . 2 Guns 6 | . 4 2 Cannons 10 | . 9 1 Classes Destroyed 7 | 2 4 1 Tunneler 1 | 1 . . Hauler 1 | . 1 . Recycler 1 | 1 . . Watcher 3 | . 3 . Swarmer 15 | . 12 3 Grunt 1 | . 1 . Assembled 2 | . . 2 Best Kill Streak 3 | 2 3 2 Combat Bots Only 3 | . 3 2 Max Kills in Single Turn 2 | 1 2 1 Gunslinging . | . . . Exploded . | . . . Melee 1 | . . 1 Uniques/NPCs Destroyed . | . . . Combat | -11 -10 -10 -------- Run | Yrd Mat Min Hostile Shots Fired 151 | . 63 88 Missed 37 | . 20 17 Damage Taken 1142 | . 343 799 Core 259 | . 47 212 Absorbed by Shields . | . . . Core Remaining (%) 100 | 100 . . Volleys Fired 91 | 8 66 17 Largest 2 | 2 2 2 Hottest 100 | 40 100 70 Shots Fired 142 | 16 105 21 Gun 48 | 16 26 6 Cannon 67 | . 52 15 Launcher . | . . . Special 27 | . 27 . Kinetic 109 | 16 78 15 Thermal 33 | . 27 6 Explosive . | . . . Electromagnetic . | . . . Robot Hit Streak 9 | 6 9 7 Robot Miss Streak 5 | 3 5 2 Penetration Max . | . . . Secondary Targets . | . . . Shots Hit Robots 53 | 8 32 13 Core Hits 31 | 3 19 9 Critical Kills . | . . . Critical Parts Destroyed . | . . . Critical Strikes 1 | . . 1 Burn 1 | . . 1 Melee Attacks . | . . . Impact . | . . . Slashing . | . . . Piercing . | . . . Sneak Attacks . | . . . Combat Hostiles . | . . . Follow-up Attacks . | . . . Damage Inflicted 930 | 101 573 256 Guns 312 | 101 148 63 Cannons 568 | . 412 156 Explosions . | . . . Melee . | . . . Ramming 50 | . 13 37 Kinetic 817 | 101 560 156 Thermal 63 | . . 63 Explosive . | . . . Electromagnetic . | . . . Impact . | . . . Slashing . | . . . Piercing . | . . . Highest Corruption . | . . . Average Corruption . | . . . Corruption Purged . | . . . Corruption Blocked . | . . . Overload Shots . | . . . Overflow Damage 15 | . 2 13 Projectiles 15 | . 2 13 Explosions . | . . . Melee . | . . . Knockbacks 4 | . 2 2 Impact . | . . . Kinetic 4 | . 2 2 Secondary . | . . . Self-Inflicted Damage . | . . . Shots . | . . . Rammed 15 | . 1 14 Targets Rammed 17 | . 1 16 Kicked . | . . . Crushed 2 | . . 2 Highest Temperature 120 | 6 120 48 Average Temperature 29 | 6 30 18 Received Heat Transfer 36 | . 36 . Siege Activations . | . . . Robots Corrupted . | . . . Combat Hostiles . | . . . Parts Fried . | . . . Impact Corruptions . | . . . Robots Melted . | . . . Combat Hostiles . | . . . Parts Melted . | . . . Heat Transferred 259 | . . 259 Parts Sabotaged . | . . . Parts Stolen . | . . . Parts Stripped . | . . . Power Chain Reactions . | . . . Alert | -11 -10 -10 ------- Run | Yrd Mat Min Peak Influence 203 | 10 203 52 Initial 12 | . 6 12 Average 77 | 7 83 44 Maximum Alert Level 1 | . 1 . Low Security (%) 99 | 100 99 100 Level 1 . | . . . Level 2 . | . . . Level 3 . | . . . Level 4 . | . . . Level 5 . | . . . High Security . | . . . Max Security . | . . . Squads Dispatched 1 | . 1 . Investigation 1 | . 1 . Extermination . | . . . Reinforcement . | . . . Assault . | . . . Garrison . | . . . Intercept . | . . . Searches Triggered . | . . . Construction Impeded . | . . . Haulers Reinforced . | . . . Active Scanning Responses . | . . . Cargo Convoy Interrupts . | . . . Stealth | -11 -10 -10 --------- Run | Yrd Mat Min Distress Signals . | . . . Communications Jammed . | . . . Distress Signals . | . . . Times Spotted 29 | . 20 9 Peak Tracking Total 5 | . 3 5 Tactical Retreats 1 | . 1 . Traps | -11 -10 -10 ------- Run | Yrd Mat Min Traps Triggered . | . . . Indirectly . | . . . Trap Hack Attempts . | . . . Triggered . | . . . Disarmed . | . . . Reprogrammed . | . . . Reused . | . . . Traps Extracted . | . . . Installed . | . . . Triggered . | . . . Machines | -11 -10 -10 ---------- Run | Yrd Mat Min Machines Disabled 2 | . 2 . Max in Single Turn 1 | . 1 . Machines Repaired . | . . . Machines Dismantled . | . . . Machines Sabotaged . | . . . Overloaded Fab Kills . | . . . Hacking | -11 -10 -10 --------- Run | Yrd Mat Min Machines Accessed 7 | . 7 . Terminals 5 | . 5 . Fabricators . | . . . Repair Stations . | . . . Recycling Units 2 | . 2 . Scanalyzers . | . . . Garrison Access . | . . . Total Hacks 17 | . 17 . Successful 6 | . 6 . Failed 11 | . 11 . Catastrophic 2 | . 2 . Database Lockouts . | . . . Manual 13 | . 13 . Terminals 12 | . 12 . Fabricators . | . . . Repair Stations . | . . . Recycling Units 5 | . 5 . Scanalyzers . | . . . Garrison Access . | . . . Terminal Hacks . | . . . Fabricator Hacks . | . . . Repair Station Hacks . | . . . Recycling Unit Hacks . | . . . Scanalyzer . | . . . Garrison Access Hacks . | . . . Unauthorized Hacks 6 | . 6 . Terminals 6 | . 6 . Assimilate 2 | . 2 . Botnet 3 | . 3 . Operators 1 | . 1 . Fabricators . | . . . Repair Stations . | . . . Recycling Units . | . . . Scanalyzers . | . . . Garrison Access . | . . . Data Cores Recovered . | . . . Used . | . . . Hacking Detections 7 | . 7 . Full Trace Events 2 | . 2 . Feedback Events . | . . . Feedback Blocked . | . . . Robot Schematics Acquired . | . . . Robots Built . | . . . Authchips . | . . . Time . | . . . Total Robot Build Rating . | . . . Part Schematics Acquired . | . . . Parts Built . | . . . Authchips . | . . . Time . | . . . Total Part Build Rating . | . . . Parts Repaired . | . . . Time . | . . . Parts Recycled . | . . . Recycled Matter . | . . . Retrieved Matter . | . . . Retrieved Components . | . . . Parts Scanalyzed . | . . . Part Schematics Acquired . | . . . Parts Damaged . | . . . Bothacking | -11 -10 -10 ------------ Run | Yrd Mat Min Used RIF Installer . | . . . Robots Hacked . | . . . Non-combat . | . . . Combat . | . . . Robot Hacks Applied . | . . . Relay Couplers Released . | . . . Fabnet Peak Effective % . | . . . Robots Rewired . | . . . Allies Hacked . | . . . Hacks Repelled . | . . . Allies | -11 -10 -10 -------- Run | Yrd Mat Min Total Allies 1 | . 1 . Largest Group 1 | . 1 1 Highest-Rated Group 10 | . 10 10 Highest-Rated Ally 10 | . 10 10 Total Orders . | . . . Ally Attacks . | . . . Total Damage . | . . . Kills . | . . . Allies Corrupted . | . . . Allies Melted . | . . . Intel | -11 -10 -10 ------- Run | Yrd Mat Min Robot Analysis Total . | . . . Derelict Logs Recovered . | . . . Drone Launches . | . . . Drone Recoveries . | . . . Exploration | -11 -10 -10 ------------- Run | Yrd Mat Min Turns Passed 1823 | 58 1611 154 Spaces Moved 615 | 16 575 24 Core . | . . . Treads 615 | 16 575 24 Legs . | . . . Wheels . | . . . Hover . | . . . Flight . | . . . Fastest Speed 160 | 160 160 240 Average Speed 188 | 160 185 296 Slowest Speed 320 | 160 240 320 Overloaded Moves . | . . . Propulsion Burnouts . | . . . Robots Hopped . | . . . Cave-ins Triggered . | . . . Exploration Rate (%) 33 | 3 89 9 Regions Visited 2 Branch Regions 1 Pre-discovered Areas . | . . . Known Exits Taken . | . . . Unknown Exits Taken 2 | 1 1 . Scrap Searched . | . . . Spaces Dug 11 | . 11 . Terrain Destroyed 16 | . 16 . Melee . | . . . Projectile 16 | . 16 . AOE . | . . . Terrain Rammed . | . . . Walls Destroyed . | . . . Machines Disabled . | . . . Actions | -11 -10 -10 --------- Run | Yrd Mat Min Total 1055 | 33 961 61 Wait 277 | . 277 . Move 613 | 15 574 24 Hop . | . . . Pick Up 15 | 3 12 . Fast Attach 1 | 1 . . Attach 5 | 2 1 2 Detach . | . . . Swap 23 | 1 20 2 Drop 13 | 3 10 . Fire 91 | 8 66 17 Melee . | . . . Ram . | . . . Kick . | . . . Crush 17 | . 1 16 Escape Stasis . | . . . Rewire . | . . . Trap . | . . . Miscellaneous . | . . . Route ------- -11/Scrapyard -10/Materials (discovered 4 exits: [*Mat x3] / [*Min]) -10/Mines History --------- Turn | Location | Event 25 | -11/Scrapyard | Discovered new exit (range 2) 59 | -11/Scrapyard | Entered Materials 331 | -10/Materials | Build established: Mutant 757 | -10/Materials | Discovered new exit (range 11) 824 | -10/Materials | Discovered new exit (range 14) 981 | -10/Materials | Discovered new exit (range 15) 1432 | -10/Materials | Discovered new exit (range 7) 1670 | -10/Materials | Entered Mines 1670 | -10/Mines | Accompanied by 1 ally 1790 | -10/Mines | Assembled infested the area 1803 | -10/Mines | Core integrity fell below 50% 1813 | -10/Mines | Core integrity fell below 20% 1824 | -10/Mines | Destroyed by as-07783 with Assembled Rifle Last Messages --------------- 01741_ Lgt. Treads destroyed. 01742_ S-10 Pest destroyed. 01751_ Acquired 3 matter. 01760_ Acquired 4 matter. 01773_ Acquired 3 matter. 01775_ K-01 Serf collects debris. 01776_ Acquired 4 matter. 01789_ K-01 Serf collects debris. 01790_ ALERT: Infestation in the mines, dispatching Demolisher response squad. 01792_ K-01 Serf cleans the Matter Pump. 01795_ K-01 Serf destroyed. 01802_ Destroyed Asb. Hover Unit. 01804_ Slammed into as-46245. 01809_ Lgt. Cannon destroyed. 01811_ Lgt. Treads destroyed. 01812_ as-46245 destroyed. 01816_ as-12841 suffers critical hit (Burn). 01818_ Ion Engine destroyed. 01821_ as-12841 destroyed. 01823_ Lgt. Armor Plating destroyed. Map ----- +----------------------------------------------------+ | | | | | | | | | | | ?????????????????????#??????????#????? | | ???????????????????????????????????#?? | | ???????????????#?#???#???????????#???? | | ??????????????????????????#???????#?#? | | ?????????????????????#???#???????????? | | ?????????????????????????????##??????? | | ?????????????#????##?????######?#????? | | ??????????????????????#?## ##?###?#?? | | ???????????????#????????# ## ##??? | | ????????????????????????# #??? | | ????????????????????????# ##?? | | ???????????????#???#????# ## ##??? | | ?????????????????#?# #### ### ###???? | | ???????????????????# ### #?????? | | ?????????????##?#??###### ##????? | | ????????????#??????#????# #####?????? | | ????????????????????#???# ##??#???#? | | ???????????????????????## ##??????? | | ????????????????????????# #?????## | | ??????????????????##???## """ #??????# | | ??????????#?????#?#??#?#%@""" #?#????? | | ???????????#?????##? a%""" #?????? | | ??????????????????# ###% %= #???? | | ?????????????????????## ???? | | ??????????????????????# #??? | | ?????????????????????? #??? | | ????????????????????? #??? | | ???????????????? ???? #### #??? | | ???????????????? ?? ##???# #??? | | ??????????????????? ## ?????? #??? | | ??????????????????? ?## ????????#??? | | ??????????????????#???##aa???????????? | | ???????????????????????# ??????????? | | ????????????????????????a ???????????? | | ????????????????????????# ???????????? | | ?????????????????????????!???????????? | | ?????????????????????????????????????? | | ?????????????????????????????????????? | | ?????????????????????????????????????? | | ?????????????????????????????????????? | | ?????????????????????????????????????? | | ?????????????????????????????????????? | | ?????????????????????????????????????? | | ?????????????????????????????????????? | | ?????????????????????????????????????? | +----------------------------------------------------+ Best States ------------- Heat Dissipation 25 Energy Generation 10 Energy Capacity 250 Matter Stores 300 Matter Capacity 300 Sight Range 16 Terrain Scan Range 16 Terrain Scan Density 10 Armor Coverage 150 Evasion (%) 40 Recoil Reduction 2 Item Schematics ----------------- None Robot Schematics ------------------ None Fabricated ------------ Nothing Alien Tech Used ----------------- None Achievements -------------- None Challenges ------------ None Game ------ Seed GrenadeDeepNanosword Manual? 0 Play Time 00:13:05 Cumulative 116.9 hours Start 2024.11.19 @ 11:02:50 End 2024.11.19 @ 11:14:05 Sessions 1 Manual Loads 0 Difficulty Rogue Special Mode None Game No. 215 Rogue 215 Adventurer 0 Explorer 0 Win Type - Total 0 Types 0/0/0/0/0/0/0/0/0 Lore% 42 Gallery% 40 Achievement% 35 Wizard Run 0 Options --------- Layout 0 ASCII 0 Keyboard 0 Movement Mouse Keybinds 0 Fullscreen 1 Font 24/Smallcaps Map View 91x25 Zoom Use 89% Tactical HUD 1 Map Filters NONE Filters NONE Steam 1 RUN: ac9133ec-f5b6-4b3a-905d-95dfa903f450